fUST/lending_fUST_20240304
["ID","MTS","AMOUNT","RATE_DAILY","PERIOD"]
[316572606,1709545746171,-238.66257272,0.0002,2]
[316572607,1709545746191,-2112.98815858,0.00020098,2]
[316572608,1709545746210,-1635.48761741,0.00020099,2]
[316572609,1709545746230,-862.4059078,0.000201,2]
[316572610,1709545746249,-687.53634561,0.00020304,2]
[316572611,1709545746269,-428.7992585,0.00020316,2]
[316572612,1709545746288,-180.753414,0.00020317,2]
[316572613,1709545746311,-252.431545,0.0002054,2]
[316572614,1709545746333,-300.0,0.00021302,2]
[316572615,1709545746353,-18328.8345,0.00021304,7]
[316572616,1709545746374,-723.1511894,0.00021414,2]
[316572617,1709545746394,-1413.84301,0.00021918,2]
[316572618,1709545746414,-156.86132765,0.00022,2]
[316572619,1709545749421,1568.82796064,0.00019204,2]
[316572740,1709545834762,-500.0,0.00022144,2]
[316572742,1709545834772,-157.20148807,0.00022339,2]
[316572744,1709545834782,-428.7992585,0.00022564,2]
[316572746,1709545834792,-623.74333508,0.00022564,2]
[316572748,1709545834802,-157.20148807,0.00022565,2]
[316572750,1709545834812,-154.87609912,0.00022565,6]
[316572752,1709545834821,-333.59294239,0.00022566,2]
[316572754,1709545834833,-133.27258436,0.00022566,2]
[316572756,1709545834843,-9985.86531246,0.00022694,2]
[316572758,1709545834854,-6513.96597272,0.00022695,2]
[316572760,1709545834863,-753.35516464,0.00022695,2]
[316572762,1709545834872,-14590.09816387,0.00023036,5]
[316572764,1709545834884,-173.2248,0.00023041,2]
[316572766,1709545834893,-180.753414,0.00023087,2]
[316572768,1709545834903,-1413.84301,0.00023452,2]
[316572770,1709545834913,-165.138624,0.00023586,2]
[316572772,1709545834922,-7451.19777819,0.000239,2]
[316572774,1709545834932,-1000.0,0.00023934,2]
[316572776,1709545834942,-154.87609912,0.00023998,2]
[316572778,1709545834952,-1521.04377652,0.00023999,2]
[316572780,1709545834962,-153.62,0.00023999,2]
[316572794,1709545835086,-500.0,0.00023999,2]
[316572796,1709545835096,-212.0920451,0.00023999,2]
[316572798,1709545835106,-500.0,0.00023999,2]
[316572800,1709545835115,-370.05577291,0.00023999,2]
[316572802,1709545835125,-500.0,0.00023999,2]
[316572804,1709545835137,-500.0,0.00023999,2]
[316572806,1709545835148,-420.20073786,0.00023999,2]
[316572808,1709545835157,-500.0,0.00023999,2]
[316572810,1709545835167,-500.0,0.00023999,2]
[316572812,1709545835177,-500.0,0.00023999,2]
[316572814,1709545835187,-500.0,0.00023999,2]
[316572816,1709545835197,-500.0,0.00023999,2]
[316572818,1709545835207,-500.0,0.00023999,2]
[316572820,1709545835216,-500.0,0.00023999,2]
[316572822,1709545835227,-500.0,0.00023999,2]
[316572824,1709545835237,-500.0,0.00023999,2]
[316572826,1709545835247,-500.0,0.00023999,2]
[316572828,1709545835256,-500.0,0.00023999,2]
[316572830,1709545835267,-500.0,0.00023999,2]
[316572832,1709545835276,-500.0,0.00023999,2]
[316572834,1709545835286,-500.0,0.00023999,2]
[316572836,1709545835296,-500.0,0.00023999,2]
[316572838,1709545835305,-18712.78436838,0.00024,2]
[316572840,1709545835316,-1571.57192339,0.00024,2]
[316572842,1709545835326,-1483296.11624958,0.00024,5]
[316572844,1709545835339,-486252.55470032,0.00024,5]
[316572847,1709545835351,-5327.57810765,0.00024,5]
[316572849,1709545835363,-5253.30965585,0.00024,5]
[316573125,1709545838603,-500.0,0.00023999,2]
[316573127,1709545838613,-500.0,0.00023999,2]
[316573129,1709545838623,-500.0,0.00023999,2]
[316573131,1709545838635,-500.0,0.00023999,2]
[316573133,1709545838644,-500.0,0.00023999,2]
[316573135,1709545838653,-500.0,0.00023999,2]
[316573137,1709545838662,-500.0,0.00023999,2]
[316573139,1709545838671,-500.0,0.00023999,2]
[316573141,1709545838680,-500.0,0.00023999,2]
[316573143,1709545838690,-500.0,0.00023999,2]
[316573145,1709545838700,-509.9953664,0.00023999,2]
[316573147,1709545838710,-500.0,0.00023999,2]
[316573150,1709545838720,-500.0,0.00023999,2]
[316573152,1709545838730,-500.0,0.00023999,2]
[316573154,1709545838740,-500.0,0.00023999,2]
[316573156,1709545838749,-500.0,0.00023999,2]
[316573157,1709545838759,-444.43094404,0.00023999,2]
[316573160,1709545838769,-500.0,0.00023999,2]
[316573161,1709545838778,-500.0,0.00023999,2]
[316573163,1709545838787,-79158.30539157,0.00024,5]
[316573174,1709545838880,-636.02990378,0.00024,5]
[316573177,1709545838895,-13401.3919955,0.00024,5]
[316573179,1709545838907,-381.32180016,0.00024,5]
[316573371,1709545841743,-215.51168761,0.00023759,2]
[316573373,1709545841752,-719380.5683483,0.00024,5]
[316573542,1709545843728,-80376.00330879,0.00024,5]
[316573844,1709545846725,-5001.8465,0.00024,5]
[316573845,1709545846793,-13045.0690949,0.00024,5]
[316578406,1709546072870,216.06454611,0.0002005,6]
[316578434,1709546457238,180.622579,0.00019178,2]
[316578449,1709546537054,6056.3008176,0.00019065,2]
[316578454,1709546587415,-290.22334133,0.00019608,2]
[316578455,1709546587436,-194.60114031,0.00019609,3]
[316578456,1709546587462,-2112.98815858,0.00019706,2]
[316578457,1709546587482,-262.31089602,0.00019707,2]
[316578458,1709546587501,-274.17258195,0.00019707,2]
[316578459,1709546587522,-428.7992585,0.00019707,2]
[316578460,1709546587546,-623.74333508,0.00019708,2]
[316578461,1709546587688,-5813.16128823,0.00019708,2]
[316578464,1709546744124,-154.86062544,0.00019706,2]
[316578465,1709546744145,-1635.48761741,0.00019707,2]
[316578466,1709546744168,-170.264845,0.00019818,2]
[316578467,1709546744187,-478.464803,0.0001988,2]
[316578468,1709546744205,-9985.86531246,0.00020181,2]
[316578469,1709546744224,-1730.4740192,0.00020182,2]
[316578470,1709546744243,-24900.0,0.00021245,2]
[316578471,1709546744262,-182.29031465,0.00021527,2]
[316578472,1709546744281,-3077.37402843,0.00021627,2]
[316578473,1709546744299,-338.98844356,0.00021628,7]
[316578474,1709546744319,-623.74333508,0.00021898,2]
[316578475,1709546744337,-274.17258195,0.00021899,2]
[316578476,1709546744356,-428.7992585,0.00021899,2]
[316578477,1709546744375,-1199.33786126,0.000219,2]
[316578478,1709546744394,-400.52766879,0.00021918,2]
[316578479,1709546744417,-154.87609912,0.00022068,6]
[316578480,1709546744440,-1628.49149318,0.00022698,2]
[316578481,1709546744463,-154.41136133,0.00022703,2]
[316578482,1709546744487,-761.00702541,0.00022705,2]
[316578483,1709546744510,-12515.02597915,0.00023,2]
[316578484,1709546744534,-4201.41471616,0.00023039,2]
[316578485,1709546744554,-39088.90124419,0.000239,2]
[316578486,1709546744573,-689.60248354,0.000239,2]
[316578487,1709546744593,-595.86657842,0.00023959,2]
[316578488,1709546744613,-1630.32267477,0.00023998,2]
[316578490,1709546837221,-400.52766879,0.00021918,2]
[316578491,1709546837249,-154.84515485,0.00022961,2]
[316578492,1709546837269,-1730.4740192,0.00022962,2]
[316578493,1709546837292,-623.74333508,0.00023897,2]
[316578494,1709546837314,-1635.48761741,0.00023897,2]
[316578495,1709546837336,-428.7992585,0.00023898,2]
[316578496,1709546837359,-274.17258195,0.00023898,2]
[316578497,1709546837381,-329.28926171,0.00023899,2]
[316578498,1709546838155,-257.0974992,0.00023899,2]
[316578499,1709546838177,-51.7042172,0.00023901,2]
[316578500,1709546843165,-534.6825437,0.00023901,2]
[316578501,1709546843298,-586.3867609,0.00023902,2]
[316578502,1709546843319,-9985.86531246,0.00023903,2]
[316578503,1709546843340,-586.3867609,0.00023904,2]
[316578504,1709546843361,-586.3867609,0.00023905,2]
[316578505,1709546843382,-5702.93637322,0.0002399,2]
[316578506,1709546843403,-249.76987524,0.00023998,2]
[316578507,1709546843424,-186.30267479,0.00023998,2]
[316578508,1709546843444,-211.35028416,0.00023998,2]
[316578509,1709546843464,-781.65092481,0.00023998,2]
[316578510,1709546843484,-258.31712702,0.00023998,2]
[316578511,1709546843509,-154.86062544,0.00023998,2]
[316578512,1709546843530,-1305.47768504,0.00023998,2]
[316578513,1709546843558,-289.85890231,0.00023998,2]
[316578514,1709546843580,-183.55163508,0.00023998,2]
[316578515,1709546843601,-154.86062544,0.00023998,2]
[316578516,1709546843624,-338.98844356,0.00023998,7]
[316578517,1709546843646,-154.87610012,0.00023998,6]
[316578518,1709546843670,-3077.37402843,0.00023998,2]
[316578519,1709546843692,-8443.31756199,0.00023999,3]
[316578520,1709546843718,-257.07252683,0.00023999,2]
[316578521,1709546843750,-500.0,0.00023999,2]
[316578522,1709546843772,-500.0,0.00023999,2]
[316578523,1709546843797,-525.7525633,0.00023999,2]
[316578524,1709546843820,-500.0,0.00023999,2]
[316578525,1709546843841,-500.0,0.00023999,2]
[316578526,1709546843863,-500.0,0.00023999,2]
[316578527,1709546843884,-500.0,0.00023999,2]
[316578528,1709546843905,-500.0,0.00023999,2]
[316578529,1709546843926,-500.0,0.00023999,2]
[316578530,1709546843948,-158.82040045,0.00023999,2]
[316578531,1709546843970,-500.0,0.00023999,2]
[316578532,1709546843999,-506.15038163,0.00023999,2]
[316578533,1709546844020,-500.0,0.00023999,2]
[316578534,1709546844040,-645.0,0.00023999,2]
[316578535,1709546844060,-263.94780259,0.00023999,2]
[316578536,1709546844081,-500.0,0.00023999,2]
[316578537,1709546844102,-500.0,0.00023999,2]
[316578538,1709546844123,-500.0,0.00023999,2]
[316578539,1709546844144,-342.3610885,0.00023999,2]
[316578540,1709546844164,-500.0,0.00023999,2]
[316578541,1709546844183,-500.0,0.00023999,2]
[316578542,1709546844203,-500.0,0.00023999,2]
[316578543,1709546844222,-500.0,0.00023999,2]
[316578544,1709546844245,-500.0,0.00023999,2]
[316578545,1709546844265,-500.0,0.00023999,2]
[316578546,1709546844285,-500.0,0.00023999,2]
[316578547,1709546844305,-500.0,0.00023999,2]
[316578548,1709546844326,-500.0,0.00023999,2]
[316578549,1709546844346,-450.0,0.00023999,2]
[316578550,1709546844365,-500.0,0.00023999,2]
[316578551,1709546844385,-500.0,0.00023999,2]
[316578552,1709546844404,-500.0,0.00023999,2]
[316578553,1709546844423,-500.0,0.00023999,2]
[316578554,1709546844444,-500.0,0.00023999,2]
[316578555,1709546844464,-500.0,0.00023999,2]
[316578556,1709546844484,-500.0,0.00023999,2]
[316578557,1709546844508,-500.0,0.00023999,2]
[316578558,1709546844528,-500.0,0.00023999,2]
[316578559,1709546844548,-500.0,0.00023999,2]
[316578560,1709546844568,-500.0,0.00023999,2]
[316578561,1709546844588,-380.06291993,0.00023999,2]
[316578562,1709546844608,-500.0,0.00023999,2]
[316578563,1709546844628,-500.0,0.00023999,2]
[316578564,1709546844648,-500.0,0.00023999,2]
[316578565,1709546844667,-500.0,0.00023999,2]
[316578566,1709546844687,-500.0,0.00023999,2]
[316578567,1709546844706,-500.0,0.00023999,2]
[316578568,1709546844727,-500.0,0.00023999,2]
[316578569,1709546844750,-500.0,0.00023999,2]
[316578570,1709546844770,-200.69358182,0.00023999,2]
[316578571,1709546844795,-151.0,0.00023999,2]
[316578572,1709546844815,-151.0,0.00023999,2]
[316578573,1709546844838,-151.0,0.00023999,2]
[316578574,1709546844859,-151.0,0.00023999,2]
[316578575,1709546844879,-151.0,0.00023999,2]
[316578576,1709546844900,-500.0,0.00023999,2]
[316578577,1709546844920,-500.0,0.00023999,2]
[316578578,1709546844940,-500.0,0.00023999,2]
[316578579,1709546844960,-500.0,0.00023999,2]
[316578580,1709546844981,-500.0,0.00023999,2]
[316578581,1709546845004,-500.0,0.00023999,2]
[316578582,1709546845026,-500.0,0.00023999,2]
[316578583,1709546845046,-500.0,0.00023999,2]
[316578584,1709546845066,-318.37608508,0.00023999,2]
[316578585,1709546845087,-500.0,0.00023999,2]
[316578586,1709546845106,-500.0,0.00023999,2]
[316578587,1709546845126,-500.0,0.00023999,2]
[316578588,1709546845150,-500.0,0.00023999,2]
[316578589,1709546845171,-500.0,0.00023999,2]
[316578590,1709546845193,-500.0,0.00023999,2]
[316578591,1709546845214,-500.0,0.00023999,2]
[316578592,1709546845235,-500.0,0.00023999,2]
[316578593,1709546845262,-500.0,0.00023999,2]
[316578594,1709546845283,-500.0,0.00023999,2]
[316578595,1709546845306,-500.0,0.00023999,2]
[316578596,1709546845328,-220.0,0.00023999,2]
[316578597,1709546845351,-500.0,0.00023999,2]
[316578598,1709546845373,-500.0,0.00023999,2]
[316578599,1709546845396,-500.0,0.00023999,2]
[316578600,1709546845417,-500.0,0.00023999,2]
[316578601,1709546845440,-500.0,0.00023999,2]
[316578602,1709546845460,-500.0,0.00023999,2]
[316578603,1709546845565,-500.0,0.00023999,2]
[316578604,1709546845587,-500.0,0.00023999,2]
[316578605,1709546845607,-500.0,0.00023999,2]
[316578606,1709546845627,-500.0,0.00023999,2]
[316578607,1709546845648,-500.0,0.00023999,2]
[316578608,1709546845669,-500.0,0.00023999,2]
[316578609,1709546845689,-500.0,0.00023999,2]
[316578610,1709546845710,-500.0,0.00023999,2]
[316578611,1709546845730,-500.0,0.00023999,2]
[316578612,1709546845755,-500.0,0.00023999,2]
[316578613,1709546845776,-500.0,0.00023999,2]
[316578614,1709546845799,-500.0,0.00023999,2]
[316578615,1709546845819,-500.0,0.00023999,2]
[316578616,1709546845840,-614.0,0.00023999,2]
[316578617,1709546845866,-500.0,0.00023999,2]
[316578618,1709546845890,-500.0,0.00023999,2]
[316578619,1709546845913,-500.0,0.00023999,2]
[316578620,1709546845937,-500.0,0.00023999,2]
[316578621,1709546845960,-500.0,0.00023999,2]
[316578622,1709546845983,-500.0,0.00023999,2]
[316578623,1709546846009,-393.2,0.00023999,2]
[316578624,1709546846032,-264.4576008,0.00024,3]
[316578625,1709546846056,-858.66485356,0.00024,5]
[316578626,1709546846180,-154703.05022,0.00024,5]
[316578628,1709546851106,-1225.30043231,0.00023999,2]
[316578629,1709546851126,-188.44406118,0.00023999,2]
[316578630,1709546851146,-16363.12995651,0.00024,5]
[316578634,1709546957154,-1151.199755,0.000219,2]
[316578703,1709547035059,-48.13810626,0.000219,2]
[316578704,1709547035070,-560.2791059,0.00022471,2]
[316578706,1709547035080,-170.264845,0.0002261,2]
[316578707,1709547035090,-9985.86531246,0.00022697,2]
[316578708,1709547035100,-1563.04656841,0.00022698,2]
[316578709,1709547035215,-217.69034753,0.00022698,2]
[316578710,1709547035225,-620.64223515,0.000239,2]
[316578711,1709547035235,-445.44228198,0.00023998,2]
[316578712,1709547035244,-218.8630943,0.00023998,2]
[316578713,1709547035254,-182.74274672,0.00023999,2]
[316578714,1709547035263,-770415.75557041,0.00024,5]
[316578715,1709547035274,-5166.48609193,0.00024,5]
[316578736,1709547037836,-60794.46267292,0.00024,5]
[316578737,1709547037853,-1735922.31638801,0.00024,5]
[316578738,1709547037864,-6091.12817548,0.00024,5]
[316578741,1709547038104,-1103.60838093,0.00024,5]
[316578742,1709547038116,-4000.0012479,0.00024,5]
[316578827,1709547041980,-7051.8,0.00024,5]
[316578830,1709547041993,-3289.1096,0.00024,5]
[316578953,1709547042993,-2680.0,0.00024,5]
[316578955,1709547043006,-4984.80700885,0.00024,5]
[316578957,1709547043017,-1562.10602718,0.00024,5]
[316579232,1709547045839,-616.46971598,0.00024,5]
[316579239,1709547045912,-17776.87445,0.00024,5]
[316579242,1709547045931,-154703.05022,0.00024,5]
[316581407,1709547195249,-327.32045809,0.00022996,2]
[316581408,1709547195273,-623.74333508,0.00022997,2]
[316581409,1709547195298,-154.86062544,0.00022998,2]
[316581410,1709547195322,-478.464803,0.00022999,2]
[316581411,1709547195345,-9985.86531246,0.00023331,2]
[316581412,1709547195367,-15934.83613269,0.00023332,2]
[316581413,1709547195390,-24900.0,0.00023334,2]
[316581414,1709547195411,-151.3789105,0.0002388,2]
[316581415,1709547195434,-182.29031465,0.000239,2]
[316581416,1709547195456,-157.38321798,0.00023998,2]
[316581417,1709547195478,-3930.03440143,0.00023998,2]
[316581418,1709547195500,-155.00155002,0.00023998,2]
[316581419,1709547195522,-155.0,0.00023998,2]
[316581420,1709547195547,-262.31089602,0.00023998,2]
[316581421,1709547195570,-274.17258195,0.00023998,2]
[316581422,1709547195593,-2112.98815858,0.00023998,2]
[316581423,1709547195617,-428.7992585,0.00023998,2]
[316581424,1709547195641,-290.22334133,0.00023998,2]
[316581425,1709547195663,-1634.92402933,0.00023999,2]
[316581426,1709547195686,-396.48492738,0.00023999,2]
[316581427,1709547195710,-356.32164182,0.00023999,2]
[316581428,1709547195733,-343.8814315,0.00023999,2]
[316581429,1709547195759,-1844841.1124605,0.00024,5]
[316581452,1709548145185,-194.840162,0.00020776,2]
[316581453,1709548145206,-194.60114031,0.00021285,3]
[316581454,1709548145227,-12567.0572784,0.00021385,2]
[316581455,1709548145247,-174.198813,0.00021752,2]
[316581456,1709548145268,-239.232401,0.00021816,2]
[316581457,1709548145289,-1094.09542371,0.000219,2]
[316581458,1709548145309,-8887.95196827,0.00022,2]
[316581464,1709548171121,-296.7718655,0.000199,2]
[316581465,1709548171164,-432.62508364,0.000199,2]
[316581466,1709548171184,-227.26689456,0.0002189,2]
[316581467,1709548171204,-30.56943173,0.00022,2]
[316581535,1709548232175,-239.232401,0.00022999,2]
[316581537,1709548232184,-4377.02944916,0.00023042,5]
[316581539,1709548232193,-1485.76050867,0.00023042,5]
[316581655,1709548238842,-1767.68990662,0.00023042,5]
[316581656,1709548238852,-631.02170022,0.000239,2]
[316581657,1709548238862,-7501.37048755,0.00023998,4]
[316581658,1709548238904,-5212.85566561,0.00023998,4]
[316581659,1709548238915,-1000.0,0.00023998,2]
[316581660,1709548238926,-500.0,0.00023999,2]
[316581661,1709548238936,-500.0,0.00023999,2]
[316581662,1709548238946,-225.09704736,0.00023999,2]
[316581663,1709548238955,-187.24752539,0.00023999,2]
[316581664,1709548238965,-500.0,0.00023999,2]
[316581665,1709548238974,-500.0,0.00023999,2]
[316581666,1709548238983,-500.0,0.00023999,2]
[316581667,1709548238992,-500.0,0.00023999,2]
[316581668,1709548239002,-500.0,0.00023999,2]
[316581669,1709548239012,-500.0,0.00023999,2]
[316581670,1709548239022,-500.0,0.00023999,2]
[316581671,1709548239033,-500.0,0.00023999,2]
[316581672,1709548239042,-500.0,0.00023999,2]
[316581673,1709548239051,-500.0,0.00023999,2]
[316581674,1709548239062,-500.0,0.00023999,2]
[316581675,1709548239071,-500.0,0.00023999,2]
[316581676,1709548239082,-582.68070291,0.00023999,2]
[316581677,1709548239092,-314.82582864,0.00023999,2]
[316581678,1709548239105,-63027.51190344,0.00024,5]
[316581679,1709548239114,-1658372.09771466,0.00024,5]
[316581744,1709548243866,-716.78564171,0.00024,5]
[316581752,1709548243934,-2060.08649753,0.00024,5]
[316581754,1709548243946,-3006.0,0.00024,5]
[316582319,1709548249821,-407.1228733,0.00022703,2]
[316582321,1709548249830,-19161.35013719,0.00024,5]
[316582324,1709548249841,-5141.96266266,0.00024,5]
[316582725,1709548598491,1000.0,0.00024,30]
[316582741,1709548728968,4895.7645,0.00023266,30]
[316582777,1709549227099,-241.81331068,0.00021882,2]
[316582791,1709549353093,-623.74333508,0.00021882,2]
[316582792,1709549353113,-401.00883587,0.00021883,2]
[316582793,1709549353134,-430.25737186,0.00021884,2]
[316582794,1709549353154,-486.26463276,0.000219,2]
[316582795,1709549353175,-2309.21003079,0.00022,2]
[316582796,1709549371130,-178.95132162,0.00021166,2]
[316582920,1709549438196,-145.22510022,0.00021166,2]
[316582922,1709549438206,-55.79908915,0.00022,2]
[316582924,1709549438215,-249.7532828,0.00022374,2]
[316582926,1709549438224,-407.1228733,0.00022705,2]
[316582928,1709549438233,-445.18422899,0.00022705,2]
[316582930,1709549438243,-561.02741672,0.00022708,2]
[316582932,1709549438252,-543.32927503,0.00022986,2]
[316582934,1709549438261,-321.96463247,0.00023,2]
[316582936,1709549438271,-740.56653464,0.00023045,2]
[316582938,1709549438280,-5000.0,0.00023045,5]
[316582940,1709549438289,-170.36932604,0.0002376,2]
[316582942,1709549438298,-613.88248499,0.000239,2]
[316582944,1709549438308,-262.31089602,0.00023998,2]
[316582946,1709549438317,-1225.30043231,0.00023998,2]
[316582948,1709549438326,-623.51457939,0.00023998,2]
[316582950,1709549438336,-238.94111818,0.00023998,2]
[316582952,1709549438346,-314.82582864,0.00023999,2]
[316582954,1709549438356,-500.0,0.00023999,2]
[316582956,1709549438365,-424.41263262,0.00023999,2]
[316582958,1709549438374,-500.0,0.00023999,2]
[316582959,1709549438384,-278.71536508,0.00023999,2]
[316582961,1709549438393,-500.0,0.00023999,2]
[316582963,1709549438403,-500.0,0.00023999,2]
[316582965,1709549438412,-500.0,0.00023999,2]
[316582967,1709549438421,-500.0,0.00023999,2]
[316582969,1709549438430,-500.0,0.00023999,2]
[316582971,1709549438439,-500.0,0.00023999,2]
[316582973,1709549438449,-500.0,0.00023999,2]
[316582975,1709549438458,-500.0,0.00023999,2]
[316582977,1709549438471,-500.0,0.00023999,2]
[316582980,1709549438481,-345.0,0.00023999,2]
[316582981,1709549438490,-500.0,0.00023999,2]
[316582983,1709549438501,-187.24752539,0.00023999,2]
[316582985,1709549438511,-170.25873426,0.00023999,2]
[316582987,1709549438520,-1716597.56503177,0.00024,5]
[316582990,1709549438534,-6492.0,0.00024,5]
[316582992,1709549438545,-24607.05258992,0.00024,5]
[316583115,1709549443272,-3145.81084099,0.00024,5]
[316583308,1709549446365,-170.36932605,0.0002376,2]
[316583310,1709549446376,-852.66800629,0.00024,5]
[316583396,1709550437126,-1635.48761741,0.00020821,2]
[316583397,1709550437151,-623.74333508,0.00020822,2]
[316583398,1709550437176,-166.666666,0.00020823,2]
[316583399,1709550437201,-3151.441279,0.00020999,2]
[316583409,1709550545147,-12783.39485369,0.00020999,2]
[316583410,1709550545167,-4993.47959631,0.00021,2]
[316583411,1709550548176,-167.29111973,0.00021,2]
[316583412,1709550548198,-250.0,0.00021011,2]
[316583413,1709550548218,-183.221474,0.00021294,2]
[316583414,1709550548239,-3459.51941893,0.00021526,2]
[316583415,1709550568108,-24.74810737,0.00021526,2]
[316583416,1709550568128,-195.20447512,0.000219,2]
[316583475,1709550635237,-151.04945619,0.00019426,2]
[316583476,1709550635247,-249.295091,0.00022025,2]
[316583477,1709550635256,-63.42203641,0.00022708,2]
[316583478,1709550635280,-111.059195,0.00022708,2]
[316583479,1709550635289,-174.198813,0.00022725,2]
[316583480,1709550635299,-500.0,0.00022999,2]
[316583481,1709550635310,-300.0,0.00022999,2]
[316583482,1709550635319,-35007.06085253,0.00023,2]
[316583483,1709550635329,-1096.28681145,0.00023049,5]
[316583484,1709550635341,-1030.84946516,0.0002305,5]
[316583485,1709550635350,-1000.0,0.00023713,5]
[316583486,1709550635361,-170.36932605,0.0002376,2]
[316583487,1709550635370,-1000.0,0.00023959,2]
[316583488,1709550635380,-6212.85566462,0.00023997,4]
[316583490,1709550635390,-49416.74087728,0.00024,5]
[316583491,1709550635399,-1494.63590158,0.00024,2]
[316583493,1709550635409,-21469.49046071,0.00024,2]
[316583494,1709550635419,-725.96066874,0.00024,2]
[316583495,1709550635428,-23112.20786871,0.00024,2]
[316583496,1709550635438,-785.0,0.00024,2]
[316583497,1709550635448,-400.71674532,0.00024,2]
[316583498,1709550635458,-5000.0,0.00024065,5]
[316583499,1709550635467,-1000.0,0.0002408,2]
[316583500,1709550635476,-153.0,0.00024167,2]
[316583501,1709550635485,-153.0,0.00024167,2]
[316583502,1709550635494,-153.0,0.00024167,2]
[316583503,1709550635504,-153.0,0.00024167,2]
[316583504,1709550635513,-153.0,0.00024167,2]
[316583505,1709550635523,-153.8584861,0.00024167,2]
[316583506,1709550635532,-581.0,0.000242,2]
[316583507,1709550635542,-1016.009513,0.00024202,2]
[316583508,1709550635552,-1000.0,0.00024214,5]
[316583509,1709550635562,-151.04945619,0.00024426,2]
[316583510,1709550635571,-636.75068593,0.000245,2]
[316583511,1709550635581,-164.64463086,0.00024556,2]
[316583512,1709550635593,-552.49423641,0.00024557,2]
[316583513,1709550635603,-164.64463085,0.00024557,2]
[316583514,1709550635613,-552.49423641,0.00024583,2]
[316583515,1709550635623,-552.49423641,0.00024609,2]
[316583516,1709550635632,-552.49423641,0.00024635,2]
[316583517,1709550635643,-238.72055672,0.00024655,2]
[316583518,1709550635653,-378.27454319,0.00024655,2]
[316583519,1709550635662,-430.63445737,0.00024655,2]
[316583520,1709550635673,-224.33420636,0.00024655,2]
[316583521,1709550635683,-214.19425334,0.00024655,2]
[316583522,1709550635692,-428.7992585,0.00024655,2]
[316583523,1709550635702,-274.17258195,0.00024655,2]
[316583524,1709550635713,-623.51457939,0.00024655,2]
[316583525,1709550635723,-1634.92402933,0.00024655,2]
[316583526,1709550635731,-15871.47446236,0.00024655,2]
[316583527,1709550635739,-1458.88602451,0.00024655,2]
[316583528,1709550635748,-379.36872751,0.00024655,2]
[316583529,1709550635757,-155.29608284,0.00024656,2]
[316583530,1709550635767,-6351.81489658,0.00024656,2]
[316583531,1709550635782,-312.7584254,0.00024656,2]
[316583532,1709550635791,-500.78814839,0.00024656,2]
[316583533,1709550635801,-500.0,0.00024657,2]
[316583534,1709550635813,-498.02445076,0.00024657,2]
[316583535,1709550635823,-500.55631999,0.00024657,2]
[316583536,1709550635833,-332.14747215,0.00024657,2]
[316583537,1709550635845,-396.82931998,0.00024657,2]
[316583538,1709550635855,-434.08255965,0.00024657,2]
[316583539,1709550635867,-500.0,0.00024657,2]
[316583540,1709550635878,-500.0,0.00024657,2]
[316583541,1709550635888,-500.0,0.00024657,2]
[316583542,1709550635898,-161.84053081,0.00024657,2]
[316583543,1709550635907,-500.0,0.00024657,2]
[316583544,1709550635918,-500.0,0.00024657,2]
[316583545,1709550635928,-500.0,0.00024657,2]
[316583546,1709550635937,-500.0,0.00024657,2]
[316583547,1709550635947,-500.0,0.00024657,2]
[316583548,1709550635956,-504.29251963,0.00024657,2]
[316583549,1709550635966,-500.0,0.00024657,2]
[316583550,1709550635975,-500.0,0.00024657,2]
[316583551,1709550635984,-503.43020002,0.00024657,2]
[316583552,1709550635995,-368.97855226,0.00024657,2]
[316583553,1709550636004,-500.0,0.00024657,2]
[316583554,1709550636015,-500.0,0.00024657,2]